[Event "*** Titled Tuesday Blitz"]
[Site "Chess.com"]
[Date "2020.02.04"]
[Round "1"]
[White "Gordima"]
[Black "Gahan-MG"]
[Result "1/2-1/2"]
[WhiteElo "2794"]
[BlackElo "2431"]
[TimeControl "180+2"]
[EndTime "9:08:28 PST"]
[Termination "Game drawn by agreement"]

1. d4 {[%clk 0:03:01.9]} 1... Nf6 {[%clk 0:02:59.7]} 2. c4 {[%clk 0:03:01.8]}
2... e5 {[%clk 0:03:00.4]} 3. dxe5 {[%clk 0:03:01.5]} 3... Ng4 {[%clk
0:03:01.8]} 4. Nf3 {[%clk 0:03:01.5]} 4... Bc5 {[%clk 0:03:02.1]} 5. e3 {[%clk
0:03:01.1]} 5... Nc6 {[%clk 0:03:02.9]} 6. Nbd2 {[%clk 0:02:47.4]} 6... Ngxe5
{[%clk 0:02:54.2]} 7. Be2 {[%clk 0:02:44.2]} 7... O-O {[%clk 0:02:54.7]} 8. O-O
{[%clk 0:02:45]} 8... Re8 {[%clk 0:02:55.3]} 9. a3 {[%clk 0:02:39.5]} 9... a5
{[%clk 0:02:55.9]} 10. b3 {[%clk 0:02:40]} 10... Nxf3+ {[%clk 0:02:56.8]} 11.
Nxf3 {[%clk 0:02:35.7]} 11... Ne5 {[%clk 0:02:53.2]} 12. Bb2 {[%clk 0:02:34.6]}
12... Nxf3+ {[%clk 0:02:52.5]} 13. gxf3 {[%clk 0:02:24.6]} 13... Ra6 {[%clk
0:02:52.5]} 14. Kh1 {[%clk 0:02:18.9]} 14... Rg6 {[%clk 0:02:47.4]} 15. Bd3
{[%clk 0:02:04.2]} 15... Rh6 {[%clk 0:02:42.6]} 16. Rg1 {[%clk 0:02:02.6]} 16...
Bf8 {[%clk 0:02:43.5]} 17. Rg3 {[%clk 0:01:56.9]} 17... Qh4 {[%clk 0:02:37.7]}
18. Qg1 {[%clk 0:01:56.6]} 18... g6 {[%clk 0:02:33.9]} 19. Rg4 {[%clk 0:01:42]}
19... Qh3 {[%clk 0:02:31.2]} 20. Qg3 {[%clk 0:01:30]} 20... Bd6 {[%clk
0:02:14.3]} 21. Qxh3 {[%clk 0:01:22.1]} 21... Rxh3 {[%clk 0:02:16.2]} 22. f4
{[%clk 0:01:23.5]} 22... h5 {[%clk 0:02:07.5]} 23. Rg3 {[%clk 0:01:17.9]} 23...
Rxg3 {[%clk 0:02:06.6]} 24. hxg3 {[%clk 0:01:19.2]} 24... Bf8 {[%clk 0:02:06.1]}
25. f5 {[%clk 0:01:10.8]} 25... Bg7 {[%clk 0:02:04.2]} 26. Bxg7 {[%clk
0:00:59.5]} 26... Kxg7 {[%clk 0:02:06.1]} 27. fxg6 {[%clk 0:00:47.1]} 27... fxg6
{[%clk 0:02:08]} 28. b4 {[%clk 0:00:44.5]} 28... Re5 {[%clk 0:01:57.9]} 29. c5
{[%clk 0:00:41.2]} 29... b6 {[%clk 0:01:38.4]} 30. cxb6 {[%clk 0:00:39.2]} 30...
cxb6 {[%clk 0:01:39.5]} 31. Rc1 {[%clk 0:00:27.5]} 31... Bb7+ {[%clk 0:01:40.5]}
32. Kg1 {[%clk 0:00:28.3]} 32... Bc6 {[%clk 0:01:40.7]} 33. Kf1 {[%clk
0:00:21.2]} 33... Kf6 {[%clk 0:01:39.9]} 34. Ke2 {[%clk 0:00:21.6]} 34... g5
{[%clk 0:01:32.3]} 35. f4 {[%clk 0:00:22.6]} 35... gxf4 {[%clk 0:01:31.1]} 36.
gxf4 {[%clk 0:00:24.5]} 36... Re8 {[%clk 0:01:21.6]} 37. Rg1 {[%clk 0:00:24.5]}
37... Rh8 {[%clk 0:01:17.4]} 38. Rg6+ {[%clk 0:00:22.7]} 38... Ke7 {[%clk
0:01:17.6]} 39. Kf2 {[%clk 0:00:18]} 39... h4 {[%clk 0:01:18.5]} 40. Kg1 {[%clk
0:00:19.3]} 40... h3 {[%clk 0:01:17.8]} 41. Kh2 {[%clk 0:00:20.6]} 41... Bg2
{[%clk 0:01:18.6]} 42. Bf5 {[%clk 0:00:18.1]} 42... axb4 {[%clk 0:01:15.1]} 43.
axb4 {[%clk 0:00:18]} 43... Rh5 {[%clk 0:01:11.5]} 44. Bg4 {[%clk 0:00:14.2]}
44... Rb5 {[%clk 0:01:08]} 45. Rg7+ {[%clk 0:00:14.5]} 45... Kf6 {[%clk
0:01:07.2]} 46. Rxd7 {[%clk 0:00:14.9]} 46... Rxb4 {[%clk 0:01:05.9]} 47. Bxh3
{[%clk 0:00:08]} 47... Bxh3 {[%clk 0:01:03.7]} 48. Kxh3 {[%clk 0:00:09.4]} 48...
Rb3 {[%clk 0:01:05.1]} 49. Kg4 {[%clk 0:00:09.5]} 49... Rxe3 {[%clk 0:01:05.6]}
1/2-1/2

[Event "*** Titled Tuesday Blitz"]
[Site "Chess.com"]
[Date "2020.02.04"]
[Round "1"]
[White "Eraschenkov"]
[Black "SHIVACalypso"]
[Result "1/2-1/2"]
[WhiteElo "2605"]
[BlackElo "2218"]
[TimeControl "180+2"]
[EndTime "9:08:33 PST"]
[Termination "Game drawn by repetition"]

1. c4 {[%clk 0:03:00.7]} 1... Nf6 {[%clk 0:02:56.7]} 2. Nc3 {[%clk 0:03:01.4]}
2... e5 {[%clk 0:02:57.3]} 3. g3 {[%clk 0:03:01.8]} 3... g6 {[%clk 0:02:56.1]}
4. Bg2 {[%clk 0:03:02.7]} 4... Bg7 {[%clk 0:02:57.5]} 5. e4 {[%clk 0:03:03.5]}
5... O-O {[%clk 0:02:58.1]} 6. Nge2 {[%clk 0:03:04.5]} 6... Nc6 {[%clk 0:02:59]}
7. O-O {[%clk 0:03:04.8]} 7... Nd4 {[%clk 0:03:00.5]} 8. Nxd4 {[%clk 0:02:59.4]}
8... exd4 {[%clk 0:03:02.4]} 9. Ne2 {[%clk 0:03:00.2]} 9... c5 {[%clk
0:03:03.2]} 10. d3 {[%clk 0:03:00.3]} 10... d6 {[%clk 0:03:04.3]} 11. h3 {[%clk
0:02:55.6]} 11... a6 {[%clk 0:03:03.4]} 12. f4 {[%clk 0:02:49.7]} 12... Rb8
{[%clk 0:03:03.7]} 13. a4 {[%clk 0:02:45.8]} 13... b5 {[%clk 0:02:58.6]} 14.
axb5 {[%clk 0:02:46.6]} 14... axb5 {[%clk 0:03:00.5]} 15. b3 {[%clk 0:02:47.9]}
15... bxc4 {[%clk 0:02:50]} 16. bxc4 {[%clk 0:02:48.6]} 16... Nd7 {[%clk
0:02:49.7]} 17. g4 {[%clk 0:02:38.7]} 17... f5 {[%clk 0:02:40.5]} 18. exf5
{[%clk 0:02:21]} 18... gxf5 {[%clk 0:02:37.5]} 19. g5 {[%clk 0:02:21.5]} 19...
Bb7 {[%clk 0:02:35]} 20. Ng3 {[%clk 0:02:19.2]} 20... Bxg2 {[%clk 0:02:35.4]}
21. Kxg2 {[%clk 0:02:20.1]} 21... Nb6 {[%clk 0:02:28.3]} 22. Ra7 {[%clk
0:02:08.9]} 22... Nc8 {[%clk 0:02:13.3]} 23. Ra2 {[%clk 0:02:01.9]} 23... d5
{[%clk 0:02:11.5]} 24. Qf3 {[%clk 0:01:57.4]} 24... dxc4 {[%clk 0:02:11.5]} 25.
dxc4 {[%clk 0:01:57.9]} 25... Qd7 {[%clk 0:01:57.4]} 26. Ba3 {[%clk 0:01:49.3]}
26... Qd6 {[%clk 0:01:37.3]} 27. Qd5+ {[%clk 0:01:08.3]} 27... Qxd5+ {[%clk
0:01:34.7]} 28. cxd5 {[%clk 0:01:07.8]} 28... Rd8 {[%clk 0:01:06.7]} 29. Bxc5
{[%clk 0:01:00.9]} 29... Rxd5 {[%clk 0:01:07.6]} 30. Rc1 {[%clk 0:00:49.2]}
30... d3 {[%clk 0:01:02.7]} 31. Be3 {[%clk 0:00:48.9]} 31... Nd6 {[%clk
0:00:57.6]} 32. Rc7 {[%clk 0:00:47.2]} 32... Rb2+ {[%clk 0:00:54.7]} 33. Rxb2
{[%clk 0:00:47.2]} 33... Bxb2 {[%clk 0:00:56.6]} 34. Nf1 {[%clk 0:00:41.1]}
34... Ne4 {[%clk 0:00:54.8]} 35. Nd2 {[%clk 0:00:38.6]} 35... Bd4 {[%clk
0:00:40.5]} 36. Kf3 {[%clk 0:00:30]} 36... Bxe3 {[%clk 0:00:27.4]} 37. Kxe3
{[%clk 0:00:29.2]} 37... Nxd2 {[%clk 0:00:26]} 38. Kxd2 {[%clk 0:00:29.8]} 38...
Rd4 {[%clk 0:00:27.5]} 39. Rc8+ {[%clk 0:00:28.1]} 39... Kg7 {[%clk 0:00:28.3]}
40. Rc7+ {[%clk 0:00:29.5]} 40... Kg6 {[%clk 0:00:26.9]} 41. Rc6+ {[%clk
0:00:30.6]} 41... Kg7 {[%clk 0:00:28.1]} 42. Rc7+ {[%clk 0:00:28.7]} 42... Kg6
{[%clk 0:00:29.1]} 43. Rc6+ {[%clk 0:00:29.4]} 43... Kg7 {[%clk 0:00:30.4]} 44.
Rc7+ {[%clk 0:00:29.4]} 1/2-1/2

[Event "*** Titled Tuesday Blitz"]
[Site "Chess.com"]
[Date "2020.02.04"]
[Round "1"]
[White "Sanan_Sjugirov"]
[Black "RojonR"]
[Result "1-0"]
[WhiteElo "2849"]
[BlackElo "2452"]
[TimeControl "180+2"]
[EndTime "9:08:37 PST"]
[Termination "Sanan_Sjugirov won by resignation"]

1. d4 {[%clk 0:02:59.8]} 1... Nf6 {[%clk 0:03:00.6]} 2. c4 {[%clk 0:02:58.2]}
2... e5 {[%clk 0:03:01.2]} 3. dxe5 {[%clk 0:02:57.9]} 3... Ng4 {[%clk
0:03:01.9]} 4. Bf4 {[%clk 0:02:48.7]} 4... g5 {[%clk 0:03:00.3]} 5. Bg3 {[%clk
0:02:44.5]} 5... Nc6 {[%clk 0:03:01.2]} 6. Nf3 {[%clk 0:02:38.7]} 6... Bg7
{[%clk 0:03:01.7]} 7. e3 {[%clk 0:02:32.7]} 7... Ngxe5 {[%clk 0:03:02.2]} 8.
Nxe5 {[%clk 0:02:31.5]} 8... Nxe5 {[%clk 0:03:04.1]} 9. Nc3 {[%clk 0:02:17]}
9... d6 {[%clk 0:03:01.2]} 10. Be2 {[%clk 0:02:16.4]} 10... Be6 {[%clk
0:02:59.1]} 11. Rc1 {[%clk 0:02:02.5]} 11... O-O {[%clk 0:02:44.7]} 12. b3
{[%clk 0:01:59.9]} 12... f5 {[%clk 0:02:37.9]} 13. f3 {[%clk 0:01:38.2]} 13...
Ng6 {[%clk 0:02:21.6]} 14. O-O {[%clk 0:01:35.8]} 14... Kh8 {[%clk 0:02:11.1]}
15. Bf2 {[%clk 0:01:33.1]} 15... Be5 {[%clk 0:02:08.7]} 16. Nb5 {[%clk
0:01:26.1]} 16... Qe7 {[%clk 0:02:06.2]} 17. Qc2 {[%clk 0:01:01.7]} 17... Qg7
{[%clk 0:01:55.9]} 18. c5 {[%clk 0:00:59.5]} 18... d5 {[%clk 0:01:49.7]} 19. c6
{[%clk 0:00:57.3]} 19... bxc6 {[%clk 0:01:30.1]} 20. Qxc6 {[%clk 0:00:57.2]}
20... Bd7 {[%clk 0:01:31]} 21. Qc5 {[%clk 0:00:48.6]} 21... c6 {[%clk
0:01:24.6]} 22. Nd4 {[%clk 0:00:45.5]} 22... Qh6 {[%clk 0:01:20.8]} 23. g3
{[%clk 0:00:43.3]} 23... f4 {[%clk 0:01:20.8]} 24. exf4 {[%clk 0:00:36.6]} 24...
gxf4 {[%clk 0:01:21.6]} 25. Nxc6 {[%clk 0:00:27.3]} 25... fxg3 {[%clk
0:01:08.3]} 26. Bxg3 {[%clk 0:00:21.7]} 26... Bxg3 {[%clk 0:00:55.8]} 27. hxg3
{[%clk 0:00:23.6]} 27... Rac8 {[%clk 0:00:55.4]} 28. Qd4+ {[%clk 0:00:23.2]}
28... Kg8 {[%clk 0:00:55.8]} 29. Qxd5+ {[%clk 0:00:22.2]} 29... Rf7 {[%clk
0:00:56.5]} 30. Bc4 {[%clk 0:00:12.5]} 30... Qe3+ {[%clk 0:00:27.4]} 31. Kg2
{[%clk 0:00:13.5]} 31... Rxc6 {[%clk 0:00:07.7]} 32. Qxf7+ {[%clk 0:00:13.7]}
32... Kh8 {[%clk 0:00:09.6]} 33. Rce1 {[%clk 0:00:11.8]} 33... Nh4+ {[%clk
0:00:06.2]} 34. gxh4 {[%clk 0:00:12.1]} 34... Rg6+ {[%clk 0:00:06.3]} 35. Qxg6
{[%clk 0:00:12.1]} 1-0

[Event "*** Titled Tuesday Blitz"]
[Site "Chess.com"]
[Date "2020.02.04"]
[Round "1"]
[White "GelmanAlexander"]
[Black "rpragchess"]
[Result "1-0"]
[WhiteElo "2458"]
[BlackElo "2814"]
[TimeControl "180+2"]
[EndTime "9:08:42 PST"]
[Termination "GelmanAlexander won by resignation"]

1. d4 {[%clk 0:02:58.8]} 1... Nf6 {[%clk 0:03:00.3]} 2. Nc3 {[%clk 0:02:58.8]}
2... d5 {[%clk 0:02:59]} 3. Bf4 {[%clk 0:02:59.8]} 3... e6 {[%clk 0:03:00.1]} 4.
Nb5 {[%clk 0:03:00.4]} 4... Na6 {[%clk 0:03:01]} 5. e3 {[%clk 0:03:01.3]} 5...
c6 {[%clk 0:03:02]} 6. Nc3 {[%clk 0:03:02.3]} 6... Bb4 {[%clk 0:03:03.3]} 7.
Bxa6 {[%clk 0:02:14.4]} 7... bxa6 {[%clk 0:03:05.2]} 8. Ne2 {[%clk 0:02:15.2]}
8... O-O {[%clk 0:03:05]} 9. a3 {[%clk 0:02:15]} 9... Be7 {[%clk 0:03:05.4]} 10.
O-O {[%clk 0:02:16]} 10... a5 {[%clk 0:03:03.8]} 11. Re1 {[%clk 0:02:08.1]}
11... Nh5 {[%clk 0:02:45.4]} 12. Na4 {[%clk 0:02:02.7]} 12... Nxf4 {[%clk
0:02:39.1]} 13. Nxf4 {[%clk 0:02:03.8]} 13... Rb8 {[%clk 0:02:38.8]} 14. Nd3
{[%clk 0:02:03.5]} 14... Bd6 {[%clk 0:02:39.6]} 15. Rb1 {[%clk 0:01:55.3]} 15...
f6 {[%clk 0:01:24.1]} 16. f4 {[%clk 0:01:31.2]} 16... Bd7 {[%clk 0:01:23.3]} 17.
Nac5 {[%clk 0:01:31.3]} 17... Qc8 {[%clk 0:01:18]} 18. Qh5 {[%clk 0:01:19.7]}
18... Be8 {[%clk 0:01:16]} 19. Qh3 {[%clk 0:01:17.3]} 19... Bf7 {[%clk
0:01:14.9]} 20. c3 {[%clk 0:01:16.6]} 20... Bg6 {[%clk 0:01:07.2]} 21. e4 {[%clk
0:01:00.3]} 21... Re8 {[%clk 0:00:53.9]} 22. Rbd1 {[%clk 0:00:56.7]} 22... Bxc5
{[%clk 0:00:53.8]} 23. Nxc5 {[%clk 0:00:52.8]} 23... dxe4 {[%clk 0:00:37.9]} 24.
b4 {[%clk 0:00:39.9]} 24... f5 {[%clk 0:00:37.3]} 25. Qe3 {[%clk 0:00:36.3]}
25... Rb5 {[%clk 0:00:33.2]} 26. Rb1 {[%clk 0:00:33.9]} 26... axb4 {[%clk
0:00:31.2]} 27. axb4 {[%clk 0:00:27.6]} 27... Qc7 {[%clk 0:00:29.5]} 28. Na6
{[%clk 0:00:23.3]} 28... Qd6 {[%clk 0:00:27.6]} 29. Ra1 {[%clk 0:00:23.4]} 29...
Rd8 {[%clk 0:00:26.2]} 30. Nc5 {[%clk 0:00:24.2]} 30... Ra8 {[%clk 0:00:27.2]}
31. Ra6 {[%clk 0:00:25]} 31... Qd5 {[%clk 0:00:26.6]} 32. Rea1 {[%clk
0:00:25.7]} 32... h6 {[%clk 0:00:24.7]} 33. Rxa7 {[%clk 0:00:25.3]} 33... Rxa7
{[%clk 0:00:26.2]} 34. Rxa7 {[%clk 0:00:27.1]} 34... Rb8 {[%clk 0:00:27.8]} 35.
h3 {[%clk 0:00:20.7]} 35... Qc4 {[%clk 0:00:27.4]} 36. Qg3 {[%clk 0:00:20.9]}
36... Kh7 {[%clk 0:00:28]} 37. Kh2 {[%clk 0:00:22.4]} 37... Rg8 {[%clk
0:00:09.8]} 38. Nd7 {[%clk 0:00:23.5]} 38... Bf7 {[%clk 0:00:08.2]} 39. Ne5
{[%clk 0:00:21.5]} 39... Qe2 {[%clk 0:00:09.2]} 40. Nxf7 {[%clk 0:00:21.3]}
40... e3 {[%clk 0:00:09.1]} 41. Ne5 {[%clk 0:00:20]} 41... Qh5 {[%clk
0:00:09.2]} 42. Qxe3 {[%clk 0:00:20.4]} 1-0

[Event "*** Titled Tuesday Blitz"]
[Site "Chess.com"]
[Date "2020.02.04"]
[Round "1"]
[White "Didici"]
[Black "Nalatac"]
[Result "1-0"]
[WhiteElo "2674"]
[BlackElo "2284"]
[TimeControl "180+2"]
[EndTime "9:08:42 PST"]
[Termination "Didici won on time"]

1. Nf3 {[%clk 0:02:57.5]} 1... d5 {[%clk 0:03:00.5]} 2. c4 {[%clk 0:02:58.1]}
2... c6 {[%clk 0:03:00.5]} 3. e3 {[%clk 0:02:58.5]} 3... Nf6 {[%clk 0:03:00.5]}
4. Nc3 {[%clk 0:02:59.8]} 4... e6 {[%clk 0:02:57.8]} 5. b3 {[%clk 0:02:59.3]}
5... Bd6 {[%clk 0:02:57.9]} 6. Bb2 {[%clk 0:03:00.4]} 6... O-O {[%clk
0:02:58.2]} 7. Qc2 {[%clk 0:02:58]} 7... e5 {[%clk 0:02:52.5]} 8. cxd5 {[%clk
0:02:58.6]} 8... cxd5 {[%clk 0:02:53.9]} 9. Nb5 {[%clk 0:02:59.1]} 9... Nc6
{[%clk 0:02:52.6]} 10. Nxd6 {[%clk 0:02:54.6]} 10... Qxd6 {[%clk 0:02:52.9]} 11.
d4 {[%clk 0:02:55.4]} 11... Nb4 {[%clk 0:02:14.9]} 12. Qd1 {[%clk 0:02:28.1]}
12... e4 {[%clk 0:02:14.8]} 13. Ne5 {[%clk 0:02:28.5]} 13... Ne8 {[%clk
0:02:10.3]} 14. a3 {[%clk 0:02:18.5]} 14... f6 {[%clk 0:01:59.1]} 15. axb4
{[%clk 0:02:18.7]} 15... fxe5 {[%clk 0:01:43.1]} 16. Qd2 {[%clk 0:02:10.7]}
16... Be6 {[%clk 0:00:27.9]} 17. dxe5 {[%clk 0:02:08.5]} 17... Qd7 {[%clk
0:00:26.9]} 18. Be2 {[%clk 0:02:05]} 18... Nc7 {[%clk 0:00:26]} 19. f4 {[%clk
0:02:04.9]} 19... Bg4 {[%clk 0:00:10.5]} 20. Bf1 {[%clk 0:02:00.8]} 20... h5
{[%clk 0:00:06.5]} 21. h3 {[%clk 0:01:59.8]} 21... Bf5 {[%clk 0:00:07.7]} 22. g3
{[%clk 0:02:00.9]} 22... a6 {[%clk 0:00:03.8]} 23. Be2 {[%clk 0:01:59.9]} 23...
Rad8 {[%clk 0:00:04.1]} 24. Bd4 {[%clk 0:01:58]} 24... Bxh3 {[%clk 0:00:04]} 25.
Bxh5 {[%clk 0:01:57.8]} 25... Bg4 {[%clk 0:00:04.5]} 26. Qh2 {[%clk 0:01:57.8]}
26... Bxh5 {[%clk 0:00:04.4]} 27. Qxh5 {[%clk 0:01:58.6]} 27... Qf5 {[%clk
0:00:04.2]} 28. Qxf5 {[%clk 0:01:42]} 28... Rxf5 {[%clk 0:00:03.3]} 29. g4
{[%clk 0:01:43.5]} 29... Rff8 {[%clk 0:00:04.3]} 30. f5 {[%clk 0:01:45]} 30...
Nb5 {[%clk 0:00:05.5]} 31. Kd2 {[%clk 0:01:44.2]} 31... g6 {[%clk 0:00:02.8]}
32. e6 {[%clk 0:01:28.5]} 32... Nxd4 {[%clk 0:00:02.6]} 33. exd4 {[%clk
0:01:30.4]} 33... gxf5 {[%clk 0:00:03.9]} 34. gxf5 {[%clk 0:01:29.7]} 34... Rxf5
{[%clk 0:00:04.5]} 35. Rag1+ {[%clk 0:01:31.2]} 35... Kf8 {[%clk 0:00:05.1]} 36.
Rh8+ {[%clk 0:01:32.9]} 36... Ke7 {[%clk 0:00:05.6]} 37. Rg7+ {[%clk 0:01:34.6]}
37... Kxe6 {[%clk 0:00:05.3]} 38. Rxd8 {[%clk 0:01:36.2]} 38... Rf2+ {[%clk
0:00:06.6]} 39. Ke1 {[%clk 0:01:36]} 39... Rb2 {[%clk 0:00:06.9]} 40. Rxb7
{[%clk 0:01:37.5]} 40... Rxb3 {[%clk 0:00:07.3]} 41. Rb6+ {[%clk 0:01:38.6]}
41... Kf5 {[%clk 0:00:07.1]} 42. Rxd5+ {[%clk 0:01:39.6]} 42... Kf4 {[%clk
0:00:08.6]} 43. Rh6 {[%clk 0:01:39.2]} 43... Rxb4 {[%clk 0:00:08.1]} 44. Rh4+
{[%clk 0:01:37.3]} 44... Ke3 {[%clk 0:00:06.9]} 45. Rh3+ {[%clk 0:01:39]} 45...
Kf4 {[%clk 0:00:07.3]} 46. Ra5 {[%clk 0:01:38.9]} 46... Rb1+ {[%clk 0:00:05.3]}
47. Kd2 {[%clk 0:01:38.2]} 47... Rb2+ {[%clk 0:00:06.7]} 48. Kc3 {[%clk
0:01:39.2]} 48... Rb6 {[%clk 0:00:06.8]} 49. d5 {[%clk 0:01:38.1]} 1-0

[Event "*** Titled Tuesday Blitz"]
[Site "Chess.com"]
[Date "2020.02.04"]
[Round "1"]
[White "Me_ch_an"]
[Black "INDIAN-ELEPHANT"]
[Result "0-1"]
[WhiteElo "2341"]
[BlackElo "2725"]
[TimeControl "180+2"]
[EndTime "9:08:45 PST"]
[Termination "INDIAN-ELEPHANT won on time"]

1. e4 {[%clk 0:02:55]} 1... e5 {[%clk 0:02:58.6]} 2. Nf3 {[%clk 0:02:55.6]} 2...
Nc6 {[%clk 0:03:00]} 3. Bb5 {[%clk 0:02:56.4]} 3... a6 {[%clk 0:03:00.6]} 4. Ba4
{[%clk 0:02:57.4]} 4... Nf6 {[%clk 0:03:01.7]} 5. Qe2 {[%clk 0:02:58.5]} 5...
Bd6 {[%clk 0:03:01.8]} 6. c3 {[%clk 0:02:58.7]} 6... O-O {[%clk 0:03:02.6]} 7.
O-O {[%clk 0:02:57.4]} 7... Re8 {[%clk 0:03:03.7]} 8. Rd1 {[%clk 0:02:57.1]}
8... b5 {[%clk 0:03:04.5]} 9. Bb3 {[%clk 0:02:57.8]} 9... Bf8 {[%clk 0:03:05.5]}
10. d3 {[%clk 0:02:58.5]} 10... h6 {[%clk 0:03:05.3]} 11. Nbd2 {[%clk
0:02:59.6]} 11... d5 {[%clk 0:03:05.4]} 12. Nf1 {[%clk 0:03:00.7]} 12... Be6
{[%clk 0:03:02.9]} 13. Ng3 {[%clk 0:02:54.3]} 13... g6 {[%clk 0:03:02.6]} 14. h3
{[%clk 0:02:53.1]} 14... Bg7 {[%clk 0:03:03.2]} 15. Nh2 {[%clk 0:02:43]} 15...
Qe7 {[%clk 0:03:02.9]} 16. f4 {[%clk 0:02:38.3]} 16... dxe4 {[%clk 0:02:59.4]}
17. Nxe4 {[%clk 0:02:21.4]} 17... Nxe4 {[%clk 0:02:59.3]} 18. Qxe4 {[%clk
0:02:20.3]} 18... Qd6 {[%clk 0:02:53]} 19. Bxe6 {[%clk 0:02:15.3]} 19... Qxe6
{[%clk 0:02:51]} 20. Re1 {[%clk 0:02:14.4]} 20... Rad8 {[%clk 0:02:48.7]} 21.
Qf3 {[%clk 0:02:05.1]} 21... Qd6 {[%clk 0:02:45.6]} 22. f5 {[%clk 0:01:59.4]}
22... e4 {[%clk 0:02:34.4]} 23. dxe4 {[%clk 0:01:47.2]} 23... Ne5 {[%clk
0:02:35.3]} 24. Qe2 {[%clk 0:01:33]} 24... Nd3 {[%clk 0:02:33]} 25. Rf1 {[%clk
0:01:24]} 25... Qc5+ {[%clk 0:02:27.4]} 26. Be3 {[%clk 0:01:21.4]} 26... Rxe4
{[%clk 0:02:25.8]} 27. Ng4 {[%clk 0:00:19.2]} 27... Qc4 {[%clk 0:02:08.4]} 28.
Qf3 {[%clk 0:00:17.6]} 28... h5 {[%clk 0:02:05.6]} 29. Nh6+ {[%clk 0:00:15.3]}
29... Kh7 {[%clk 0:02:03.8]} 30. fxg6+ {[%clk 0:00:12.7]} 30... fxg6 {[%clk
0:02:05.1]} 31. Nf7 {[%clk 0:00:13.9]} 31... Re7 {[%clk 0:01:52.2]} 32. Nxd8
{[%clk 0:00:13]} 32... Nxb2 {[%clk 0:01:48.6]} 33. Rae1 {[%clk 0:00:10.7]} 33...
Bxc3 {[%clk 0:01:43.5]} 34. Rd1 {[%clk 0:00:10.1]} 34... Nxd1 {[%clk 0:01:43.3]}
35. Rxd1 {[%clk 0:00:11.5]} 35... Bb4 {[%clk 0:01:35.9]} 36. Nc6 {[%clk
0:00:10.9]} 36... Rf7 {[%clk 0:01:32.1]} 37. Qd5 {[%clk 0:00:11.9]} 37... Rf1+
{[%clk 0:01:31.2]} 38. Kh2 {[%clk 0:00:10.7]} 38... Bd6+ {[%clk 0:01:32.3]} 39.
g3 {[%clk 0:00:08.8]} 39... Qe2+ {[%clk 0:01:32.9]} 40. Qg2 {[%clk 0:00:08.6]}
40... Qxd1 {[%clk 0:01:33.7]} 41. Nd4 {[%clk 0:00:06.7]} 41... h4 {[%clk
0:01:31.7]} 42. Ne2 {[%clk 0:00:07.1]} 42... hxg3+ {[%clk 0:01:31]} 43. Nxg3
{[%clk 0:00:09]} 43... Re1 {[%clk 0:01:32.1]} 44. Bf2 {[%clk 0:00:08.3]} 44...
Re2 {[%clk 0:01:33.1]} 45. Qf3 {[%clk 0:00:07.8]} 45... Bxg3+ {[%clk 0:01:31.1]}
46. Kxg3 {[%clk 0:00:08.4]} 46... Qd6+ {[%clk 0:01:30.5]} 47. Kg2 {[%clk
0:00:09]} 47... Qe6 {[%clk 0:01:31.1]} 48. Qg3 {[%clk 0:00:05.6]} 48... Qe4+
{[%clk 0:01:28.7]} 49. Kf1 {[%clk 0:00:06]} 49... Rc2 {[%clk 0:01:28.9]} 0-1

[Event "*** Titled Tuesday Blitz"]
[Site "Chess.com"]
[Date "2020.02.04"]
[Round "1"]
[White "Quiet_Desperation"]
[Black "ChessLover0108"]
[Result "1-0"]
[WhiteElo "2425"]
[BlackElo "2746"]
[TimeControl "180+2"]
[EndTime "9:08:55 PST"]
[Termination "Quiet_Desperation won by resignation"]

1. e4 {[%clk 0:03:00.7]} 1... c5 {[%clk 0:02:59.3]} 2. Nf3 {[%clk 0:03:00.9]}
2... d6 {[%clk 0:03:00.5]} 3. d4 {[%clk 0:03:02]} 3... cxd4 {[%clk 0:03:02.4]}
4. Nxd4 {[%clk 0:03:03.5]} 4... Nf6 {[%clk 0:03:04.3]} 5. Nc3 {[%clk 0:03:04.7]}
5... a6 {[%clk 0:03:05.6]} 6. Bg5 {[%clk 0:03:05.5]} 6... Nbd7 {[%clk 0:03:05]}
7. f3 {[%clk 0:03:06.3]} 7... e6 {[%clk 0:03:00.7]} 8. Qd2 {[%clk 0:03:06.5]}
8... Be7 {[%clk 0:03:00.7]} 9. O-O-O {[%clk 0:03:06.3]} 9... Qc7 {[%clk
0:03:02.3]} 10. Be3 {[%clk 0:03:06.8]} 10... b5 {[%clk 0:02:58.5]} 11. g4 {[%clk
0:03:06]} 11... Ne5 {[%clk 0:02:49]} 12. Bd3 {[%clk 0:02:56.2]} 12... Bb7 {[%clk
0:02:44]} 13. Kb1 {[%clk 0:02:50.5]} 13... Rc8 {[%clk 0:02:41.7]} 14. g5 {[%clk
0:02:44.6]} 14... Nfd7 {[%clk 0:02:42]} 15. h4 {[%clk 0:02:37.4]} 15... Nxd3
{[%clk 0:02:22]} 16. cxd3 {[%clk 0:02:36]} 16... Nc5 {[%clk 0:02:17.4]} 17. h5
{[%clk 0:02:31.9]} 17... Rf8 {[%clk 0:01:30.8]} 18. Nce2 {[%clk 0:02:04.1]}
18... d5 {[%clk 0:01:15.1]} 19. e5 {[%clk 0:01:46.1]} 19... g6 {[%clk 0:01:09]}
20. f4 {[%clk 0:01:42.3]} 20... Kd7 {[%clk 0:01:03.8]} 21. Rc1 {[%clk
0:01:38.6]} 21... Qb8 {[%clk 0:01:01.4]} 22. Rc2 {[%clk 0:01:27.2]} 22... Na4
{[%clk 0:00:59.9]} 23. Rhc1 {[%clk 0:01:22.4]} 23... Rxc2 {[%clk 0:01:00.4]} 24.
Rxc2 {[%clk 0:01:11.6]} 24... Rc8 {[%clk 0:00:58.1]} 25. Nb3 {[%clk 0:01:02.1]}
25... Rxc2 {[%clk 0:00:54.6]} 26. Qxc2 {[%clk 0:01:02.5]} 26... gxh5 {[%clk
0:00:56.5]} 27. Ned4 {[%clk 0:00:54.1]} 27... Qg8 {[%clk 0:00:35.4]} 28. Na5
{[%clk 0:00:30.6]} 28... Ba8 {[%clk 0:00:23.4]} 29. Nab3 {[%clk 0:00:17.2]}
29... h4 {[%clk 0:00:20.8]} 30. Qh2 {[%clk 0:00:17.6]} 30... Qg6 {[%clk
0:00:20.7]} 31. Nc1 {[%clk 0:00:15.1]} 31... Qh5 {[%clk 0:00:21.5]} 32. Qh3
{[%clk 0:00:09.1]} 32... h6 {[%clk 0:00:12.5]} 33. f5 {[%clk 0:00:09.7]} 33...
hxg5 {[%clk 0:00:05.7]} 34. fxe6+ {[%clk 0:00:10.4]} 34... fxe6 {[%clk
0:00:06.1]} 35. Qxe6+ {[%clk 0:00:10.9]} 35... Kd8 {[%clk 0:00:07.6]} 36. Nf5
{[%clk 0:00:11.1]} 36... Bb4 {[%clk 0:00:06.4]} 37. b3 {[%clk 0:00:11]} 37... d4
{[%clk 0:00:04.6]} 38. Bxd4 {[%clk 0:00:10.1]} 38... Nc3+ {[%clk 0:00:04]} 39.
Bxc3 {[%clk 0:00:09.3]} 39... Bxc3 {[%clk 0:00:05.9]} 40. Qe7+ {[%clk
0:00:09.1]} 40... Kc8 {[%clk 0:00:06.5]} 41. Nd6+ {[%clk 0:00:10.4]} 41... Kb8
{[%clk 0:00:08.2]} 42. Qd8+ {[%clk 0:00:11.1]} 42... Ka7 {[%clk 0:00:09.8]} 43.
Qc7+ {[%clk 0:00:12.2]} 1-0